bitfinex/quotes_SOLUSD_20220302
["timestamp","ask_amount","ask_price","bid_price","bid_amount"]
[1646259975525,6.0,101.39,101.32,51.25775977]
[1646259976927,0.98270243,101.38,101.32,51.25775977]
[1646259977127,6.25,101.39,101.32,51.25775977]
[1646259978126,0.98270243,101.38,101.32,51.25775977]
[1646259978328,6.25,101.39,101.32,51.25775977]
[1646259979731,0.25,101.39,101.32,51.25775977]
[1646259979928,6.0,101.39,101.33,25.36861227]
[1646259980129,6.25,101.39,101.34,50.85194786]
[1646259981130,26.86641643,101.39,101.34,50.85194786]
[1646259981530,0.62714052,101.38,101.34,50.85194786]
[1646259984936,26.86641643,101.39,101.34,50.85194786]
[1646259987746,26.61641643,101.39,101.34,50.85194786]
[1646259989243,0.89438152,101.38,101.34,50.85194786]
[1646259989442,6.89438152,101.38,101.34,50.85194786]
[1646259989645,6.25,101.38,101.34,50.85194786]
[1646259992246,0.62637314,101.37,101.34,50.85194786]
[1646259992445,6.0,101.37,101.35,0.22904184]
[1646259993046,0.25,101.38,101.35,0.22904184]
[1646259993247,6.0,101.38,101.35,0.22904184]
[1646259993451,6.25,101.38,101.35,0.22904184]
[1646259995051,0.53479458,101.37,101.35,0.22904184]
[1646259995451,6.25,101.38,101.35,0.22904184]
[1646259995667,6.25,101.38,101.34,49.00262413]
[1646259998973,0.25,101.38,101.34,49.00262413]
[1646259999172,6.25,101.39,101.34,49.00262413]
[1646260001574,0.52302263,101.38,101.34,49.00262413]
[1646260002682,6.25,101.39,101.34,49.00262413]
[1646260004779,0.7715502,101.38,101.34,49.00262413]
[1646260006080,6.25,101.39,101.33,23.0039]
[1646260006282,0.53130803,101.38,101.33,23.2539]
[1646260007081,0.53130803,101.38,101.33,71.57887084]
[1646260007283,6.25,101.39,101.33,71.57887084]
[1646260007511,6.25,101.39,101.33,23.2539]
[1646260007680,0.95556395,101.38,101.33,23.0039]
[1646260008683,0.95556395,101.38,101.33,72.76842774]
[1646260008883,36.76682601,101.39,101.33,72.76842774]
[1646260011089,21.0583,101.39,101.33,72.76842774]
[1646260012691,6.0,101.39,101.33,72.76842774]
[1646260012893,6.0,101.39,101.33,73.01842774]
[1646260013097,6.0,101.4,101.33,73.01842774]
[1646260014095,3.53451677,101.4,101.33,73.01842774]
[1646260014393,3.53451677,101.4,101.33,77.95042774]
[1646260014595,3.78451677,101.4,101.33,77.95042774]
[1646260019299,0.81063163,101.39,101.33,77.95042774]
[1646260019900,3.78451677,101.4,101.33,77.95042774]
[1646260021100,0.84029491,101.39,101.33,176.63042774]
[1646260021403,18.59121677,101.4,101.33,77.70042774]
[1646260022024,0.49697673,101.39,101.33,77.70042774]
[1646260022427,18.59121677,101.4,101.33,77.70042774]
[1646260022625,18.59121677,101.4,101.33,77.95042774]
[1646260023725,0.96439484,101.39,101.33,77.95042774]
[1646260024326,24.47829484,101.39,101.33,77.95042774]
[1646260024529,23.7639,101.39,101.33,77.95042774]
[1646260025227,38.572,101.39,101.33,77.95042774]
[1646260026528,38.572,101.39,101.33,77.70042774]
[1646260026928,38.572,101.39,101.33,54.69652774]
[1646260039342,38.322,101.39,101.33,54.69652774]
[1646260039542,38.322,101.39,101.33,54.94652774]
[1646260040541,38.572,101.39,101.33,54.94652774]
[1646260044243,23.7639,101.39,101.33,54.94652774]
[1646260047553,0.71843932,101.38,101.33,54.94652774]
[1646260047750,23.7639,101.39,101.33,54.94652774]
[1646260049553,6.0,101.38,101.33,54.94652774]
[1646260049751,0.59330323,101.37,101.33,54.94652774]
[1646260049953,6.25,101.38,101.33,54.94652774]
[1646260052255,0.25,101.38,101.33,54.94652774]
[1646260052451,23.7639,101.39,101.33,54.94652774]
[1646260053952,0.25,101.39,101.33,153.62652774]
[1646260054153,15.0565,101.4,101.34,23.3982]
[1646260054367,15.0565,101.4,101.35,58.03018118]
[1646260059693,0.25,101.4,101.35,58.03018118]
[1646260059885,59.85040189,101.41,101.35,58.03018118]
[1646260060986,0.5295037,101.4,101.35,58.03018118]
[1646260061384,59.85040189,101.41,101.35,161.64218118]
[1646260061986,39.1299,101.41,101.37,56.13104565]
[1646260062787,24.0079,101.41,101.37,56.13104565]
[1646260062986,23.7579,101.41,101.37,56.13104565]
[1646260064287,16.63628294,101.44,101.37,61.06204565]
[1646260064488,6.0,101.43,101.38,22.5758]
[1646260064687,6.25,101.43,101.39,47.15221808]
[1646260065889,20.11383522,101.45,101.39,145.83221808]
[1646260066088,6.0,101.44,101.4,24.6105]
[1646260066290,6.0,101.44,101.41,46.15925715]
[1646260066692,6.0,101.45,101.42,1.85743515]
[1646260066892,6.0,101.45,101.43,52.85691923]
[1646260067091,6.25,101.45,101.43,52.85691923]
[1646260067291,6.0,101.45,101.43,52.85691923]
[1646260067692,24.831,101.46,101.43,52.85691923]
[1646260068093,24.831,101.46,101.44,1.85706894]
[1646260068293,19.7961,101.48,101.44,1.85706894]
[1646260068693,20.0461,101.48,101.44,1.85706894]
[1646260070195,6.0,101.47,101.44,1.85706894]
[1646260070395,6.25,101.47,101.44,1.85706894]
[1646260070895,6.0,101.47,101.44,1.85706894]
[1646260071096,6.0,101.48,101.44,1.85706894]
[1646260071897,6.0,101.48,101.45,54.74051891]
[1646260072098,6.25,101.48,101.45,54.74051891]
[1646260072897,6.25,101.48,101.46,0.09283514]
[1646260073898,0.25,101.48,101.46,0.09283514]
[1646260074102,76.05995894,101.49,101.46,0.09283514]
[1646260074498,57.11370189,101.49,101.46,0.09283514]
[1646260074900,42.49610189,101.49,101.46,0.09283514]
[1646260075103,22.5864,101.49,101.46,0.09283514]
[1646260076400,37.1577164,101.51,101.46,0.09283514]
[1646260076599,6.0,101.5,101.46,0.09283514]
[1646260076800,6.25,101.5,101.46,0.09283514]
[1646260077706,44.664,101.52,101.46,0.09283514]
[1646260077901,67.819,101.52,101.46,0.09283514]
[1646260078101,87.47870189,101.52,101.46,0.09283514]
[1646260078501,62.60480189,101.52,101.47,51.88611101]
[1646260078701,37.9451,101.52,101.47,51.88611101]
[1646260079902,38.1951,101.52,101.47,51.88611101]
[1646260080305,38.1951,101.52,101.46,23.5]
[1646260080501,0.53735629,101.51,101.46,23.5]
[1646260081302,6.53735629,101.51,101.46,23.5]
[1646260081503,6.78735629,101.51,101.46,23.5]
[1646260081903,6.25,101.51,101.46,23.5]
[1646260082603,6.25,101.51,101.46,182.11]
[1646260083004,0.25,101.51,101.46,182.11]
[1646260083203,6.0,101.53,101.46,182.11]
[1646260083404,6.25,101.53,101.46,182.11]
[1646260084205,57.14680189,101.54,101.46,182.11]
[1646260084406,57.14680189,101.54,101.46,182.36]
[1646260084806,37.4871,101.54,101.46,182.36]
[1646260085205,22.6999,101.54,101.46,199.69394003]
[1646260085611,6.0,101.53,101.46,199.69394003]
[1646260086405,6.0,101.53,101.47,164.61]
[1646260086606,6.0,101.53,101.47,164.86]
[1646260086808,6.25,101.53,101.47,164.86]
[1646260088014,6.25,101.53,101.47,104.93]
[1646260088217,0.98270243,101.52,101.47,104.93]
[1646260088413,6.25,101.53,101.47,104.93]
[1646260089619,19.7845,101.56,101.47,179.6433]
[1646260089820,19.7845,101.56,101.48,24.6875]
[1646260090219,1.84794023,101.6,101.48,24.6875]
[1646260090419,18.24990552,101.59,101.48,24.6875]
[1646260090624,32.45357658,101.59,101.48,24.6875]
[1646260090823,14.7851,101.55,101.48,24.6875]
[1646260091223,63.48537106,101.58,101.48,24.6875]
[1646260091423,49.2817,101.58,101.48,24.6875]
[1646260091822,49.2817,101.58,101.48,39.4695]
[1646260092223,49.2817,101.58,101.49,6.0]
[1646260092424,14.7839,101.56,101.49,6.0]
[1646260092634,14.7839,101.56,101.49,6.25]
[1646260093723,15.0339,101.56,101.49,6.25]
[1646260094226,14.7839,101.56,101.49,6.25]
[1646260094425,14.7839,101.56,101.49,6.0]
[1646260095629,15.0339,101.56,101.49,6.0]
[1646260096326,15.0339,101.56,101.49,6.25]
[1646260098534,15.0339,101.56,101.5,22.5575]
[1646260098735,15.0339,101.56,101.5,22.8075]
[1646260098934,10.0339,101.56,101.5,22.8075]
[1646260099234,0.66339357,101.55,101.5,22.8075]
[1646260099433,9.7839,101.56,101.5,22.8075]
[1646260100936,10.0339,101.56,101.5,22.8075]
[1646260101238,0.6123083,101.55,101.5,22.8075]
[1646260101435,10.0339,101.56,101.5,22.8075]
[1646260101835,10.0339,101.56,101.5,22.5575]
[1646260102339,0.54292098,101.55,101.5,22.5575]
[1646260102536,10.0339,101.56,101.5,22.5575]
[1646260107245,9.7839,101.56,101.5,22.5575]
[1646260107445,9.7839,101.56,101.5,22.8075]
[1646260108046,9.7839,101.56,101.5,0.25]
[1646260108247,9.7839,101.56,101.48,24.2032]
[1646260108446,14.7842,101.55,101.48,24.4532]
[1646260108660,15.0342,101.55,101.48,24.4532]
[1646260110753,0.81964717,101.54,101.48,24.4532]
[1646260112048,15.0342,101.55,101.48,24.4532]
[1646260113451,15.0342,101.55,101.48,24.2032]
[1646260113654,15.28976433,101.54,101.48,24.2032]
[1646260113854,15.0358,101.54,101.48,24.2032]
[1646260114052,0.25,101.54,101.45,14.7851]
[1646260114254,6.56347012,101.53,101.42,5.0]
[1646260114454,24.85792882,101.53,101.41,29.5779]
[1646260114653,14.7916,101.5,101.41,29.5779]
[1646260114852,0.6662028,101.49,101.42,23.0725]
[1646260115085,15.0416,101.5,101.42,23.0725]
[1646260115555,0.25,101.5,101.42,23.0725]
[1646260115955,36.16805708,101.52,101.42,23.0725]
[1646260116955,14.7931,101.49,101.42,23.0725]
[1646260117157,0.78957495,101.48,101.42,23.0725]
[1646260117355,0.25,101.49,101.42,23.0725]
[1646260118157,14.7944,101.48,101.42,23.0725]
[1646260118357,15.0444,101.48,101.42,23.0725]
[1646260119159,15.50565616,101.47,101.41,4.928]
[1646260119357,0.25,101.47,101.35,22.6816]
[1646260119557,0.25,101.47,101.36,6.0]
[1646260119558,2.38730514,101.46,101.36,6.0]
[1646260119758,2.63730514,101.46,101.36,6.0]
[1646260119957,2.09810179,101.46,101.36,6.0]
[1646260120158,0.57314458,101.45,101.36,6.0]
[1646260120364,14.8016,101.43,101.36,6.0]
[1646260120562,15.0516,101.43,101.36,30.7931]
[1646260121260,14.8033,101.42,101.36,30.7931]
[1646260121462,15.0533,101.42,101.36,30.7931]
[1646260121662,16.90140179,101.42,101.36,30.27617682]
[1646260121876,2.09810179,101.42,101.36,5.48307682]
[1646260122061,2.09810179,101.42,101.34,46.7259]
[1646260123868,14.8062,101.4,101.34,46.7259]
[1646260124068,15.0562,101.4,101.34,46.7259]
[1646260126978,0.56765304,101.39,101.34,46.7259]
[1646260127172,15.0562,101.4,101.34,46.7259]
[1646260128271,0.62355852,101.39,101.34,46.7259]
[1646260129475,15.0562,101.4,101.34,46.7259]
[1646260130595,14.8062,101.4,101.34,46.7259]
[1646260131982,15.0562,101.4,101.34,46.7259]
[1646260133882,0.90189066,101.39,101.34,46.7259]
[1646260134281,15.0562,101.4,101.34,46.7259]
[1646260137091,15.0562,101.4,101.34,46.9759]
[1646260141620,15.0562,101.4,101.35,0.52748146]
[1646260142433,15.0562,101.4,101.34,46.9759]
[1646260143235,15.0562,101.4,101.35,0.52869745]
[1646260143433,15.0562,101.4,101.34,46.9759]
[1646260145331,15.0562,101.4,101.34,46.7259]
[1646260147133,15.0562,101.4,101.35,0.72090431]
[1646260147337,15.0562,101.4,101.34,46.7259]
[1646260147942,15.0562,101.4,101.35,0.87376938]
[1646260148734,15.0562,101.4,101.34,46.7259]
[1646260151736,0.25,101.4,101.34,46.7259]
[1646260151934,14.8074,101.39,101.35,0.46247319]
[1646260152136,15.0574,101.39,101.34,46.7259]
[1646260153938,14.8091,101.38,101.32,4.932]
[1646260154139,15.0591,101.38,101.33,6.0]
[1646260156746,15.0591,101.38,101.34,0.49665066]
[1646260157943,15.0591,101.38,101.33,6.0]
[1646260158753,6.0,101.37,101.33,6.0]
[1646260159046,6.25,101.37,101.33,6.0]
[1646260159845,6.25,101.37,101.34,0.62760571]
[1646260160445,6.0,101.37,101.32,4.932]
[1646260162648,6.25,101.37,101.32,4.932]
[1646260163549,6.25,101.37,101.33,0.79456304]
[1646260163750,6.25,101.37,101.32,4.932]
[1646260170795,5.99260041,101.37,101.32,4.932]
[1646260171975,5.99260041,101.37,101.33,0.50493167]
[1646260172842,20.80300041,101.37,101.33,0.50493167]
[1646260172978,20.80300041,101.37,101.32,4.932]
[1646260175082,20.55300041,101.37,101.32,4.932]
[1646260176083,5.74260041,101.37,101.32,4.932]
[1646260176281,14.8119,101.36,101.32,4.932]
[1646260176482,15.0619,101.36,101.31,28.3354]
[1646260179086,15.0619,101.36,101.31,23.4024]
[1646260180092,6.0,101.35,101.32,0.80306013]
[1646260180313,6.0,101.35,101.31,23.4024]
[1646260181497,6.25,101.35,101.31,23.4024]
[1646260185704,6.0,101.35,101.31,23.4024]
[1646260187706,6.0,101.35,101.32,0.90189066]
[1646260187905,6.0,101.35,101.31,23.4024]
[1646260189108,6.25,101.35,101.31,23.4024]
[1646260190207,6.0,101.35,101.31,23.4024]
[1646260191230,6.0,101.35,101.31,28.3364]
[1646260191429,6.25,101.35,101.31,28.3364]
[1646260192230,6.25,101.35,101.31,23.4024]
[1646260196140,21.0633,101.35,101.31,23.4024]
[1646260198539,20.5633,101.35,101.31,23.4024]
[1646260199242,20.3133,101.35,101.31,23.4024]
[1646260200040,25.46706706,101.35,101.31,23.4024]
[1646260201642,25.71706706,101.35,101.31,23.4024]
[1646260202444,25.71706706,101.35,101.3,24.2473]
[1646260204246,20.5633,101.35,101.31,0.45470584]
[1646260204750,20.5633,101.35,101.3,24.2473]
[1646260205347,14.8147,101.34,101.29,4.934]
[1646260205547,15.0647,101.34,101.27,4.934]
[1646260205749,15.0647,101.34,101.28,6.0]
[1646260205986,15.0647,101.34,101.28,6.25]
[1646260207753,15.0647,101.34,101.28,0.25]
[1646260207951,15.0647,101.34,101.27,6.25]
[1646260208352,15.0647,101.34,101.28,24.7396]
[1646260208550,15.0647,101.34,101.29,6.0]
[1646260211050,14.8163,101.33,101.26,30.72340254]
[1646260211271,2.09810179,101.33,101.26,4.934]
[1646260211452,21.62720606,101.32,101.26,4.934]
[1646260211653,21.87720606,101.32,101.26,4.934]
[1646260211855,43.62375315,101.31,101.26,4.934]
[1646260212056,6.0,101.3,101.26,4.934]
[1646260212255,6.25,101.3,101.26,4.934]
[1646260212561,14.8222,101.29,101.26,4.934]
[1646260212756,15.0722,101.29,101.26,4.934]
[1646260213254,0.25,101.29,101.26,4.934]
[1646260213858,8.09810179,101.3,101.26,4.934]
[1646260214459,27.87720606,101.3,101.21,23.2289]
[1646260214657,50.09072554,101.3,101.21,23.4789]
[1646260215060,14.8237,101.28,101.21,23.4789]
[1646260215257,15.0737,101.28,101.21,23.4789]
[1646260215459,14.8237,101.28,101.21,23.4789]
[1646260217187,15.0737,101.28,101.21,23.4789]
[1646260217888,15.0737,101.28,101.19,14.8237]
[1646260218087,14.8289,101.25,101.17,49.594]
[1646260218286,14.8289,101.25,101.18,6.0]
[1646260218287,15.0789,101.25,101.18,6.0]
[1646260218486,15.0789,101.25,101.17,49.594]
[1646260219589,15.0789,101.25,101.17,24.1241]
[1646260220186,6.0,101.24,101.17,24.1241]
[1646260220389,21.0804,101.24,101.17,24.1241]
[1646260220587,21.0804,101.24,101.17,24.3741]
[1646260221389,1.84810179,101.23,101.12,5.0]
[1646260221590,14.8357,101.2,101.11,28.2053]
[1646260221787,15.0857,101.2,101.11,5.0]
[1646260221987,15.0857,101.2,101.11,19.9844]
[1646260221988,16.93380179,101.2,101.11,19.9844]
[1646260222389,16.93380179,101.2,101.11,14.9844]
[1646260222789,36.71290606,101.2,101.11,14.9844]
[1646260223989,59.01309221,101.2,101.11,14.9844]
[1646260225291,14.8412,101.17,101.11,14.9844]
[1646260225496,15.0912,101.17,101.11,14.9844]
[1646260227398,1.84810179,101.16,101.09,47.9279]
[1646260227703,14.845,101.15,101.06,23.8747]
[1646260227898,15.095,101.15,101.07,6.0]
[1646260228298,16.94310179,101.15,101.07,6.0]
[1646260228700,15.095,101.15,101.07,6.0]
[1646260228902,20.8451,101.14,101.07,6.0]
[1646260229100,21.0951,101.14,101.07,6.0]
[1646260236611,21.0951,101.14,101.06,2.2927065]
[1646260236911,31.84731967,101.13,101.02,23.8898]
[1646260237110,45.37307351,101.13,101.02,23.8898]
[1646260237312,30.59354705,101.12,101.01,23.4704]
[1646260237512,60.87974164,101.12,101.01,23.4704]
[1646260237713,70.92543356,101.11,101.01,28.4704]
[1646260237911,84.4511874,101.11,101.01,23.4704]
[1646260238111,93.4175285,101.11,101.01,23.4704]
[1646260238512,108.59952309,101.11,101.01,23.4704]
[1646260239113,14.8546,101.1,101.01,23.4704]
[1646260239314,15.1046,101.1,101.01,23.4704]
[1646260239916,34.88370427,101.1,101.01,23.4704]
[1646260240115,34.88370427,101.1,101.01,23.7204]
[1646260240315,57.12579921,101.1,101.01,23.7204]
[1646260240715,6.0,101.09,101.01,23.7204]
[1646260240919,6.25,101.09,101.01,23.7204]
[1646260245044,6.25,101.09,101.02,0.66169606]
[1646260245545,6.25,101.09,101.01,23.7204]
[1646260245746,6.25,101.09,101.01,23.4704]
[1646260246003,25.81213188,101.09,101.01,23.4704]
[1646260246347,48.05422682,101.09,101.01,23.4704]
[1646260247145,48.05422682,101.09,101.01,23.7204]
[1646260247548,48.05422682,101.09,101.02,0.58244353]
[1646260248446,48.05422682,101.09,101.01,23.7204]
[1646260248649,48.05422682,101.09,101.02,0.57105453]
[1646260249045,97.57622682,101.09,100.99,5.0]
[1646260249247,99.4243285,101.09,100.99,5.0]
[1646260249448,99.4243285,101.09,100.96,115.50573748]
[1646260249648,114.63021709,101.09,100.97,28.9342]
[1646260250449,114.63021709,101.09,100.97,23.9342]
[1646260254154,114.63021709,101.09,100.97,18.9342]
[1646260254355,114.63021709,101.09,100.97,21.5458681]
[1646260254556,112.15717327,101.09,100.98,0.42525707]
[1646260255356,112.15717327,101.09,100.97,21.5458681]
[1646260255584,112.15717327,101.09,100.98,0.55849743]
[1646260256762,112.15717327,101.09,100.97,21.5458681]
[1646260257969,117.15717327,101.09,100.98,0.45051625]
[1646260258166,117.15717327,101.09,100.97,21.5458681]
[1646260259869,117.15717327,101.09,100.99,0.6850992]
[1646260260070,117.15717327,101.09,100.99,25.0287992]
[1646260260270,117.15717327,101.09,100.99,29.9767992]
[1646260260473,210.83717327,101.09,100.97,0.25]
[1646260260771,136.4598,101.08,100.95,15.1096]
[1646260260975,141.7098,101.08,100.95,15.1096]
[1646260261172,38.10903588,101.07,100.96,4.949]
[1646260261373,110.13803082,101.07,100.97,0.42976519]
[1646260261573,19.56213188,101.06,100.96,0.25]
[1646260261772,19.81213188,101.06,100.96,0.25]
[1646260262000,42.05422682,101.06,100.96,0.25]
[1646260262199,19.77910427,101.05,100.96,0.25]
[1646260262398,20.02910427,101.05,100.95,20.0586]
[1646260262798,19.56213188,101.04,100.95,20.0586]
[1646260263001,19.81213188,101.04,100.95,20.0586]
[1646260263901,19.81213188,101.04,100.95,22.37667869]
[1646260264100,34.67303188,101.04,100.95,22.37667869]
[1646260264803,6.0,101.03,100.95,22.37667869]
[1646260265001,6.25,101.03,100.95,22.37667869]
[1646260267471,6.25,101.03,100.95,82.30667869]
[1646260267603,6.25,101.03,100.96,0.49988369]
[1646260267805,6.25,101.03,100.95,180.98667869]
[1646260268904,6.25,101.03,100.96,0.44474549]
[1646260269504,6.25,101.03,100.95,22.37667869]
[1646260269910,6.25,101.03,100.95,22.42767869]
[1646260270611,6.25,101.03,100.96,26.15838682]
[1646260270808,6.25,101.03,100.96,26.40838682]
[1646260273839,6.25,101.03,100.96,31.35838682]
[1646260275612,6.25,101.03,100.97,59.93]
[1646260275813,6.25,101.03,100.97,163.50888757]
[1646260276212,6.0,101.03,100.97,163.50888757]
[1646260276615,37.09949494,101.06,100.97,163.50888757]
[1646260276814,37.09949494,101.06,100.98,31.13544288]
[1646260277014,37.09949494,101.06,100.98,31.38544288]
[1646260277620,42.83824525,101.06,100.98,31.38544288]
[1646260278115,48.32699556,101.06,100.98,31.38544288]
[1646260278317,48.32699556,101.06,100.99,0.50764036]
[1646260279216,48.07699556,101.06,100.99,0.50764036]
[1646260279415,25.83490062,101.06,100.98,130.06544288]
[1646260279616,25.83490062,101.06,100.99,0.54557714]
[1646260279817,25.83490062,101.06,100.98,130.06544288]
[1646260280218,6.0,101.05,100.99,0.44932204]
[1646260280421,6.0,101.05,100.98,130.06544288]
[1646260280618,6.25,101.05,100.98,129.81544288]
[1646260281322,6.06608076,101.05,100.98,129.81544288]
[1646260281718,10.97750062,101.06,101.02,98.68]
[1646260281918,27.89953399,101.13,101.02,160.83602145]
[1646260282120,22.7306,101.13,101.03,131.47611376]
[1646260282420,24.7031,101.15,101.04,2.54904003]
[1646260282625,24.7031,101.15,101.04,2.61327428]
[1646260282820,29.7031,101.15,101.04,2.61327428]
[1646260283120,6.0,101.14,101.04,2.61327428]
[1646260283722,6.25,101.14,101.04,2.61327428]
[1646260283921,6.25,101.14,101.05,4.946]
[1646260284121,6.25,101.14,101.05,5.196]
[1646260284527,0.25,101.14,101.05,5.196]
[1646260284828,69.6613,101.15,101.06,24.2938]
[1646260285029,69.6613,101.15,101.07,4.945]
[1646260285228,69.6613,101.15,101.07,5.195]
[1646260285829,69.6613,101.15,101.08,24.4007]
[1646260286228,69.4113,101.15,101.08,0.25]
[1646260286438,0.4103747,101.14,101.07,4.945]
[1646260286626,69.4113,101.15,101.07,4.945]
[1646260286627,14.849,101.13,101.07,4.945]
[1646260287430,54.5657,101.15,101.07,5.195]
[1646260287644,54.8157,101.15,101.07,4.945]
[1646260288234,6.0,101.14,101.07,4.945]
[1646260288429,21.0971,101.14,101.07,4.945]
[1646260289130,20.8471,101.14,101.07,4.945]
[1646260290535,0.46004607,101.13,101.07,4.945]
[1646260292131,26.0971,101.14,101.07,4.945]
[1646260292334,0.42495477,101.13,101.07,4.945]
[1646260292533,26.0971,101.14,101.07,4.945]
[1646260295857,0.59270188,101.13,101.07,4.945]
[1646260296055,49.503,101.13,101.07,4.945]
[1646260296255,49.753,101.13,101.07,4.945]
[1646260297157,0.43779689,101.12,101.01,5.0]
[1646260297358,98.68,101.11,100.95,147.55724589]
[1646260297562,147.99663614,101.1,100.98,5.0]
[1646260297858,74.47559769,101.1,100.98,5.0]
[1646260298059,22.65892555,101.09,100.98,5.0]
[1646260298272,22.90892555,101.09,100.99,24.3453]
[1646260298560,1.84857983,101.08,100.99,24.3453]
[1646260298760,2.09857983,101.08,100.99,24.3453]
[1646260299360,16.95627983,101.08,100.99,24.3453]
[1646260299762,1.84857983,101.07,100.99,24.3453]
[1646260299970,6.0,101.06,100.99,24.3453]
[1646260300161,6.25,101.06,100.96,5.0]
[1646260300363,1.84857983,101.05,100.96,5.0]
[1646260300563,0.50040434,101.04,100.94,28.78555346]
[1646260300965,1.84857983,101.04,100.94,5.0]
[1646260301164,2.09857983,101.04,100.94,5.25]
[1646260301365,2.09857983,101.04,100.94,0.25]
[1646260301565,2.09857983,101.04,100.93,15.60676215]
[1646260301775,2.09857983,101.04,100.93,20.60676215]
[1646260302165,16.96247983,101.04,100.93,20.57875999]
[1646260302771,16.71247983,101.04,100.94,24.476]
[1646260302968,16.71247983,101.04,100.94,24.726]
[1646260304068,16.96247983,101.04,100.94,24.726]
[1646260306572,15.1139,101.04,100.94,24.726]
[1646260306976,14.8639,101.04,100.94,24.726]
[1646260307175,6.0,101.03,100.94,24.726]
[1646260307975,0.44022829,101.02,100.94,24.726]
[1646260308174,20.8625,101.03,100.94,24.726]
[1646260308976,21.1125,101.03,100.94,39.5872]
[1646260309875,21.1125,101.03,100.94,0.25]
[1646260310077,0.59265448,101.02,100.93,5.71715999]
[1646260310276,14.8643,101.01,100.93,0.71715999]
[1646260310481,15.1143,101.01,100.93,0.46715999]
[1646260310884,6.0,101.0,100.93,0.46715999]
[1646260311088,0.25,101.0,100.93,0.46715999]
[1646260312082,0.44399361,100.99,100.93,0.46715999]
[1646260312382,24.2393,101.01,100.93,0.46715999]
[1646260312583,6.0,101.0,100.93,15.32965999]
[1646260312789,0.25,101.0,100.93,15.57965999]
[1646260313985,9.375,101.01,100.93,15.57965999]
[1646260316987,9.375,101.01,100.93,0.46715999]
[1646260318789,0.49944264,101.0,100.93,0.46715999]
[1646260319288,9.375,101.01,100.93,0.46715999]
[1646260322012,0.47501643,101.0,100.93,0.46715999]
[1646260322216,0.25,101.01,100.93,0.46715999]
[1646260322513,15.1129,101.02,100.93,15.32975999]
[1646260322712,15.1129,101.02,100.94,23.9354]
[1646260322911,6.0,101.01,100.94,23.9354]
[1646260323112,6.25,101.01,100.94,23.9354]
[1646260323713,0.25,101.01,100.94,23.9354]
[1646260323914,6.25,101.01,100.94,23.9354]
[1646260330124,6.25,101.01,100.93,0.46715999]
[1646260330323,0.75893778,101.0,100.93,0.46715999]
[1646260330622,15.1164,101.01,100.93,0.46715999]
[1646260331232,15.1164,101.01,100.93,31.85890002]
[1646260331426,15.1164,101.01,100.93,26.85890002]
[1646260332026,6.0,101.0,100.93,26.85890002]
[1646260332225,6.25,101.0,100.93,26.85890002]
[1646260333232,0.4083905,100.99,100.93,26.85890002]
[1646260333430,6.25,101.0,100.93,26.85890002]
[1646260334731,21.117,101.0,100.93,26.85890002]
[1646260339338,35.8785,101.0,100.93,0.46715999]
[1646260341239,0.74069509,100.99,100.93,0.46715999]
[1646260341441,15.60949509,100.99,100.93,0.46715999]
[1646260341648,0.25,100.99,100.93,0.46715999]
[1646260342039,14.7615,101.0,100.93,0.46715999]
[1646260343142,0.44015013,100.99,100.93,0.46715999]
[1646260343442,37.16110463,101.0,100.93,0.46715999]
[1646260343943,52.02930463,101.0,100.93,0.46715999]
[1646260345142,6.0,100.99,100.93,0.46715999]
[1646260345343,6.25,100.99,100.93,0.46715999]
[1646260346752,69.27214683,101.0,100.93,69.0426339]
[1646260346753,22.14960463,101.0,100.93,69.0426339]
[1646260346948,15.1529,101.03,100.93,93.2506339]
[1646260347153,19.93007129,101.03,100.93,93.2506339]